bitfinex/quotes_SOLUSD_20250806
["timestamp","ask_amount","ask_price","bid_price","bid_amount"]
[1754496052719,3.99508434,169.42,169.35,0.54432314]
[1754496052720,0.03,169.42,169.41,15.10621557]
[1754496053095,0.03,169.42,169.39,24.89135717]
[1754496054610,0.7,169.42,169.39,15.10621557]
[1754496054792,0.03,169.42,169.4,15.39053871]
[1754496055494,0.03,169.42,169.4,0.28432314]
[1754496056007,0.03,169.42,169.4,0.14216157]
[1754496056300,0.03,169.42,169.37,0.28432314]
[1754496056301,10.4551416,169.41,169.37,0.28432314]
[1754496056509,10.4551416,169.41,169.36,21.01072628]
[1754496056807,9.7851416,169.41,169.37,0.28432314]
[1754496057107,9.8151416,169.42,169.37,0.28432314]
[1754496057304,9.8151416,169.42,169.38,15.10621557]
[1754496058698,13.78206533,169.42,169.38,15.10621557]
[1754496058907,10.4851416,169.42,169.38,15.10621557]
[1754496059491,10.4851416,169.42,169.37,25.17568031]
[1754496060307,10.4551416,169.41,169.36,15.10621557]
[1754496060493,9.7851416,169.38,169.36,15.10621557]
[1754496060694,9.7851416,169.39,169.35,15.10621557]
[1754496061620,0.67,169.39,169.35,15.10621557]
[1754496061935,10.4551416,169.38,169.35,15.10621557]
[1754496062302,9.7851416,169.4,169.35,24.89135717]
[1754496062490,3.96653192,169.4,169.36,0.54432314]
[1754496062819,9.7851416,169.41,169.36,0.54432314]
[1754496063012,10.4651416,169.41,169.36,0.28432314]
[1754496063722,9.7851416,169.4,169.36,0.28432314]
[1754496063925,10.4651416,169.4,169.36,0.28432314]
[1754496064715,0.68,169.4,169.36,6.18874858]
[1754496065094,3.99653192,169.42,169.36,15.10621557]
[1754496065095,0.68,169.39,169.36,15.10621557]
[1754496065292,0.68,169.38,169.36,15.10621557]
[1754496065513,0.68,169.37,169.35,44.32]
[1754496065732,10.4651416,169.36,169.35,44.32]
[1754496065897,10.4651416,169.36,169.31,15.10621557]
[1754496066100,9.7851416,169.33,169.31,15.10621557]
[1754496066322,4.95865467,169.39,169.3,0.06]
[1754496066323,9.7851416,169.36,169.3,9.8451416]
[1754496066627,14.43167352,169.36,169.3,5.96650334]
[1754496066945,10.4651416,169.35,169.3,0.06]
[1754496067224,9.7851416,169.34,169.3,0.06]
[1754496067390,10.4651416,169.34,169.3,0.06]
[1754496068238,13.75482942,169.36,169.31,9.7851416]
[1754496068429,10.4651416,169.36,169.32,15.10621557]
[1754496069043,10.4651416,169.35,169.3,21.07285849]
[1754496069250,10.4651416,169.35,169.3,30.85800009]
[1754496070126,10.4651416,169.35,169.3,21.07285849]
[1754496070438,13.75441764,169.36,169.3,31.11800009]
[1754496070637,9.7851416,169.36,169.3,31.11800009]
[1754496071040,9.7851416,169.36,169.31,0.28432314]
[1754496071244,10.4651416,169.37,169.31,24.67568031]
[1754496071568,13.75428828,169.37,169.3,5.96664292]
[1754496071723,14.43428828,169.36,169.3,15.75178452]
[1754496071925,10.4651416,169.35,169.3,5.96664292]
[1754496072139,0.68,169.34,169.3,5.96664292]
[1754496072762,0.68,169.34,169.3,15.75178452]
[1754496072961,0.68,169.34,169.3,5.96664292]
[1754496073341,0.68,169.34,169.31,15.10621557]
[1754496073671,0.68,169.36,169.31,25.15135717]
[1754496073823,10.4651416,169.36,169.31,15.10621557]
[1754496074149,9.7851416,169.36,169.31,9.7851416]
[1754496074328,10.4651416,169.35,169.31,15.10621557]
[1754496074533,0.68,169.34,169.31,21.01253343]
[1754496074925,0.68,169.34,169.31,15.10621557]
[1754496075465,3.96893663,169.38,169.33,15.10621557]
[1754496075763,10.4651416,169.37,169.33,15.10621557]
[1754496076283,0.68,169.36,169.33,15.10621557]
[1754496076458,9.7851416,169.37,169.33,15.10621557]
[1754496076459,0.68,169.35,169.33,15.10621557]
[1754496076659,9.7851416,169.37,169.33,21.01182624]
[1754496076660,0.68,169.37,169.33,21.01182624]
[1754496076849,4.64893663,169.39,169.35,15.10621557]
[1754496077046,6.1103552,169.38,169.35,15.10621557]
[1754496077270,0.68,169.38,169.34,15.10621557]
[1754496077774,6.7903552,169.38,169.34,15.10621557]
[1754496078147,6.1103552,169.36,169.32,44.1]
[1754496078345,6.7903552,169.36,169.33,15.10621557]
[1754496078675,0.68,169.35,169.33,15.10621557]
[1754496078841,6.1103552,169.36,169.33,15.10621557]
[1754496079042,6.7903552,169.36,169.33,15.10621557]
[1754496079659,0.68,169.36,169.33,15.10621557]
[1754496079846,6.1103552,169.38,169.33,27.12201836]
[1754496080174,6.7903552,169.38,169.33,27.12201836]
[1754496080486,0.68,169.37,169.33,27.12201836]
[1754496080679,0.68,169.37,169.33,21.01166316]
[1754496080885,0.68,169.39,169.34,10.0359151]
[1754496081772,9.8059151,169.37,169.33,15.10621557]
[1754496081976,0.68,169.36,169.33,15.10621557]
[1754496082308,0.68,169.35,169.33,15.10621557]
[1754496082466,10.4859151,169.37,169.33,15.10621557]
[1754496082655,0.68,169.36,169.33,15.10621557]
[1754496083680,0.68,169.35,169.33,15.10621557]
[1754496083887,9.7759151,169.36,169.33,15.10621557]
[1754496084090,0.68,169.34,169.33,15.10621557]
[1754496084304,0.68,169.34,169.32,44.1]
[1754496084974,3.97361799,169.35,169.33,24.88213067]
[1754496085167,0.03,169.37,169.33,24.88213067]
[1754496085504,0.03,169.37,169.34,0.26]
[1754496085679,0.03,169.37,169.36,15.10621557]
[1754496085868,0.03,169.37,169.36,24.88213067]
[1754496086064,0.03,169.37,169.36,25.14213067]
[1754496086289,0.03,169.37,169.36,15.36621557]
[1754496086466,0.03,169.37,169.36,25.14213067]
[1754496086866,0.03,169.37,169.36,31.04671262]
[1754496087580,0.03,169.37,169.36,31.33103576]
[1754496088616,0.03,169.37,169.36,31.92149395]
[1754496088980,0.03,169.42,169.37,0.28432314]
[1754496089182,0.03,169.42,169.41,25.16645381]
[1754496089380,0.03,169.42,169.41,69.06645381]
[1754496089616,0.03,169.42,169.41,69.32645381]
[1754496091017,0.03,169.42,169.41,75.22929307]
[1754496092108,0.03,169.44,169.41,91.45337797]
[1754496092317,0.03,169.44,169.43,25.16645381]
[1754496092505,0.03,169.44,169.43,69.04645381]
[1754496092707,0.03,169.44,169.43,69.30645381]
[1754496092891,0.03,169.44,169.43,75.20859628]
[1754496094914,0.03,169.44,169.43,85.41451128]
[1754496096010,0.03,169.44,169.43,85.67451128]
[1754496097289,0.2,169.5,169.44,41.39053871]
[1754496097596,0.2,169.5,169.49,15.10621557]
[1754496097799,0.89,169.5,169.49,58.98621557]
[1754496098588,0.89,169.5,169.45,10.06023824]
[1754496098589,0.89,169.5,169.43,16.36805747]
[1754496098789,9.7759151,169.48,169.45,15.10621557]
[1754496099015,9.7759151,169.49,169.47,15.10621557]
[1754496099211,0.2,169.5,169.47,15.10621557]
[1754496099514,0.69,169.49,169.47,15.10621557]
[1754496100688,0.69,169.48,169.47,15.10621557]
[1754496101297,0.69,169.48,169.47,25.08213057]
[1754496101718,10.4659151,169.48,169.47,25.08213057]
[1754496102012,10.4659151,169.48,169.47,15.10621557]
[1754496102216,0.69,169.48,169.47,15.10621557]
[1754496103708,0.89,169.5,169.47,15.10621557]
[1754496104028,0.69,169.49,169.47,58.96621557]
[1754496104530,0.69,169.49,169.47,64.86691304]
[1754496104702,0.69,169.48,169.47,58.96621557]
[1754496105131,0.72,169.48,169.47,58.96621557]
[1754496105293,0.72,169.48,169.46,17.735213]
[1754496105498,9.7759151,169.47,169.46,15.10621557]
[1754496105719,10.4659151,169.47,169.46,21.03535457]
[1754496105931,10.4659151,169.47,169.46,15.10621557]
[1754496106618,0.69,169.47,169.46,15.10621557]
[1754496107106,0.03,169.48,169.46,15.10621557]
[1754496107307,0.03,169.48,169.46,21.00730908]
[1754496107529,0.72,169.48,169.46,21.00730908]
[1754496107933,0.72,169.48,169.46,15.10621557]
[1754496108424,0.72,169.48,169.46,21.00727695]
[1754496109003,0.69,169.47,169.46,15.10621557]
[1754496109307,0.03,169.48,169.46,21.00731317]
[1754496109514,0.72,169.48,169.46,27.13856917]
[1754496109817,0.03,169.48,169.46,27.13856917]
[1754496110019,0.03,169.48,169.47,43.86]
[1754496110234,0.03,169.48,169.47,49.961256]
[1754496110421,0.03,169.48,169.47,71.45305026]
[1754496111324,0.03,169.48,169.47,77.35379965]
[1754496111721,0.03,169.48,169.47,77.61379965]
[1754496112734,0.03,169.48,169.47,81.26995284]
[1754496112919,0.03,169.48,169.47,81.00995284]
[1754496113341,0.03,169.48,169.47,81.26995284]
[1754496114145,0.03,169.48,169.47,81.00995284]
[1754496114601,0.03,169.48,169.47,71.2525441]
[1754496114807,0.03,169.48,169.47,81.26995284]
[1754496116512,0.03,169.48,169.47,81.00995284]
[1754496117021,0.07433236,169.5,169.49,0.28432314]
[1754496117237,0.07433236,169.5,169.49,59.23053871]
[1754496117632,0.07433236,169.5,169.49,65.13059181]
[1754496117831,0.07433236,169.5,169.49,74.88800055]
[1754496119154,0.07433236,169.5,169.49,75.14800055]
[1754496119326,0.07433236,169.5,169.49,74.88800055]
[1754496119662,0.07433236,169.5,169.49,65.13059181]
[1754496120652,0.07433236,169.5,169.49,65.39059181]
[1754496121074,0.03,169.55,169.52,15.10621557]
[1754496121366,0.03,169.55,169.54,25.14794745]
[1754496121739,0.03,169.55,169.54,31.04626053]
[1754496122436,0.03,169.55,169.54,21.00452865]
[1754496122642,10.47740874,169.55,169.54,15.10621557]
[1754496123032,10.47740874,169.55,169.53,8.241047]
[1754496123262,0.67,169.54,169.51,15.10621557]
[1754496123553,0.67,169.54,169.5,43.82]
[1754496123554,9.75740874,169.52,169.5,15.10621557]
[1754496123856,10.42740874,169.51,169.5,21.00245657]
[1754496124166,10.42740874,169.53,169.5,26.90216158]
[1754496124370,0.03,169.55,169.52,15.10621557]
[1754496124674,0.03,169.55,169.51,43.82]
[1754496124675,0.03,169.55,169.54,15.10621557]
[1754496124883,0.03,169.55,169.54,58.92621557]
[1754496125952,0.03,169.55,169.54,64.82452865]
[1754496126452,0.7,169.55,169.54,64.82452865]
[1754496127461,0.03,169.55,169.54,64.82452865]
[1754496127777,0.03,169.55,169.54,74.58193739]
[1754496127948,0.03,169.55,169.54,75.12626053]
[1754496128154,0.67,169.65,169.55,0.28432314]
[1754496128384,10.42740874,169.65,169.58,0.28432314]
[1754496128569,10.42740874,169.64,169.61,15.10621557]
[1754496128879,0.67,169.63,169.61,58.92621557]
[1754496129046,9.75740874,169.64,169.61,58.92621557]
[1754496129254,0.67,169.62,169.61,58.92621557]
[1754496129863,0.67,169.62,169.61,64.82209435]
[1754496130068,3.94729014,169.68,169.65,15.10621557]
[1754496130282,3.94729014,169.68,169.61,74.57950335]
[1754496130283,0.67,169.68,169.67,15.10621557]
[1754496130449,0.67,169.68,169.67,58.92621557]
[1754496131947,0.67,169.68,169.67,74.5774184]
[1754496132148,0.67,169.68,169.67,68.68362457]
[1754496132673,0.67,169.73,169.67,74.57718621]
[1754496132876,0.67,169.73,169.68,9.75740874]
[1754496133080,9.75740874,169.71,169.69,58.90621557]
[1754496133268,0.67,169.7,169.69,58.90621557]
[1754496133467,9.75740874,169.72,169.69,58.90621557]
[1754496133776,10.42740874,169.71,169.69,58.90621557]
[1754496134156,0.67,169.7,169.69,58.90621557]
[1754496134663,10.42740874,169.7,169.69,15.10621557]
[1754496134979,20.18481748,169.7,169.55,15.10621557]
[1754496135180,9.75740874,169.68,169.62,15.10621557]
[1754496135481,9.75740874,169.63,169.52,15.00701444]
[1754496135691,0.67,169.62,169.58,17.719501]
[1754496136470,0.67,169.62,169.43,5.90214247]
[1754496136471,0.28432314,169.61,169.43,5.90214247]
[1754496136674,0.28432314,169.61,169.49,17.728924]
[1754496136675,26.0,169.6,169.49,17.728924]
[1754496136855,4.60883313,169.59,169.49,61.508924]
[1754496137064,0.67,169.58,169.52,24.86362431]
[1754496137276,10.42740874,169.58,169.54,15.10621557]
[1754496137598,10.42740874,169.57,169.54,15.10621557]
[1754496137805,9.75740874,169.57,169.54,15.10621557]
[1754496137987,9.75740874,169.57,169.54,21.00445487]
[1754496138184,9.75740874,169.59,169.54,30.76186361]
[1754496138384,0.67,169.6,169.56,15.10621557]
[1754496138685,9.75740874,169.61,169.56,68.64362431]
[1754496138885,9.75740874,169.61,169.56,58.88621557]
[1754496138886,9.75740874,169.6,169.56,58.88621557]
[1754496139288,10.42740874,169.61,169.56,68.64362431]
[1754496139692,9.75740874,169.6,169.56,58.88621557]
[1754496140000,9.75740874,169.59,169.56,58.88621557]
[1754496140202,9.75740874,169.57,169.56,58.88621557]
[1754496140383,9.75740874,169.58,169.56,58.88621557]
[1754496140579,9.75740874,169.59,169.56,58.88621557]
[1754496140908,9.75740874,169.58,169.56,58.88621557]
[1754496141097,10.42740874,169.57,169.56,58.88621557]
[1754496141275,10.42740874,169.57,169.55,15.10621557]
[1754496141472,9.75740874,169.56,169.55,15.10621557]
[1754496141710,0.67,169.56,169.55,15.10621557]
[1754496141924,9.75740874,169.57,169.55,15.10621557]
[1754496142218,9.75740874,169.56,169.55,15.10621557]
[1754496142995,10.42740874,169.56,169.52,43.76]
[1754496143192,0.67,169.55,169.53,15.10621557]
[1754496143401,10.42740874,169.54,169.49,17.728924]
[1754496143613,9.75740874,169.5,169.49,43.76]
[1754496143794,10.42740874,169.5,169.47,17.728924]
[1754496143996,9.75740874,169.48,169.46,43.76]
[1754496144205,9.75740874,169.48,169.47,15.10621557]
[1754496144395,0.67,169.51,169.47,15.10621557]
[1754496144596,9.75740874,169.53,169.49,15.10621557]
[1754496144808,9.75740874,169.54,169.49,68.62362431]
[1754496145008,10.42740874,169.57,169.53,15.10621557]
[1754496145215,0.67,169.59,169.53,15.10621557]
[1754496145394,9.75740874,169.57,169.53,15.10621557]
[1754496145593,9.75740874,169.56,169.53,15.10621557]
[1754496145808,26.0,169.61,169.53,21.00476943]
[1754496146010,9.75740874,169.6,169.55,9.75740874]
[1754496146334,9.75740874,169.61,169.56,24.86362431]
[1754496146522,9.75740874,169.62,169.56,24.86362431]
[1754496146709,9.75740874,169.62,169.58,15.10621557]
[1754496146905,0.67,169.63,169.58,24.86362431]
[1754496146906,9.75740874,169.63,169.58,24.86362431]
[1754496147109,0.67,169.64,169.58,58.88621557]
[1754496147309,10.42740874,169.64,169.6,15.10621557]
[1754496148201,0.67,169.67,169.61,58.86621557]
[1754496148598,9.75740874,169.65,169.61,58.86621557]
[1754496148793,9.75740874,169.66,169.61,58.86621557]
[1754496149229,9.75740874,169.64,169.61,58.86621557]
[1754496149406,0.67,169.65,169.61,58.86621557]
[1754496149722,9.75740874,169.68,169.64,15.10621557]
[1754496150303,9.75740874,169.68,169.63,5.89507808]
[1754496150503,10.42740874,169.68,169.63,5.89507808]
[1754496151212,6.60644288,169.77,169.64,68.62362431]
[1754496151213,9.75740874,169.69,169.64,68.62362431]
[1754496151527,9.75740874,169.67,169.64,58.86621557]
[1754496151723,9.75740874,169.65,169.64,58.86621557]
[1754496151909,10.42740874,169.65,169.62,15.10621557]
[1754496152103,9.75740874,169.63,169.62,15.10621557]
[1754496152505,9.75740874,169.64,169.62,15.10621557]
[1754496153319,0.7,169.63,169.59,15.10621557]
[1754496153518,0.7,169.62,169.6,15.10621557]
[1754496153833,10.45740874,169.61,169.57,15.10621557]
[1754496154136,9.75740874,169.59,169.57,15.10621557]
[1754496154626,0.7,169.61,169.57,15.10621557]
[1754496155013,9.75740874,169.6,169.57,15.10621557]
[1754496155221,9.75740874,169.59,169.57,15.10621557]
[1754496156931,10.45740874,169.58,169.57,15.10621557]
[1754496157132,10.45740874,169.58,169.54,61.463688]
[1754496157305,9.75740874,169.56,169.53,15.10621557]
[1754496157509,9.75740874,169.57,169.53,15.10621557]
[1754496157832,9.75740874,169.56,169.53,15.10621557]
[1754496158631,0.7,169.57,169.53,15.10621557]
[1754496158939,9.75740874,169.56,169.53,15.10621557]
[1754496160034,10.45740874,169.56,169.53,15.10621557]
[1754496160336,9.75740874,169.57,169.53,15.10621557]
[1754496160538,9.75740874,169.56,169.53,15.10621557]
[1754496160913,9.75740874,169.55,169.53,15.10621557]
[1754496161118,10.45740874,169.56,169.53,15.10621557]
[1754496161713,9.75740874,169.57,169.53,24.86362431]
[1754496161925,9.75740874,169.59,169.53,15.10621557]
[1754496162247,9.75740874,169.56,169.53,15.10621557]
[1754496162448,0.7,169.58,169.53,31.02215465]
[1754496162449,9.75740874,169.58,169.53,31.02215465]
[1754496162628,0.7,169.61,169.53,31.02215465]
[1754496162829,9.75740874,169.56,169.53,15.10621557]
[1754496163035,10.45740874,169.56,169.53,15.10621557]
[1754496163222,0.7,169.56,169.53,21.00485108]
[1754496163532,9.75740874,169.56,169.53,15.10621557]
[1754496163725,0.7,169.59,169.53,21.00483525]
[1754496163927,9.75740874,169.58,169.53,30.76224399]
[1754496164133,9.75740874,169.61,169.57,15.10621557]
[1754496164330,0.7,169.61,169.57,15.10621557]
[1754496164529,9.75740874,169.58,169.55,43.74]
[1754496164739,9.75740874,169.58,169.56,15.10621557]
[1754496164943,3.95123737,169.61,169.56,24.86362431]
[1754496165123,9.75740874,169.61,169.56,25.12362431]
[1754496165325,0.7,169.6,169.52,0.26]
[1754496165554,9.75740874,169.59,169.54,24.86362431]
[1754496165724,9.75740874,169.59,169.54,25.12362431]
[1754496166342,9.75740874,169.59,169.55,5.8979652]
[1754496166540,9.75740874,169.58,169.57,15.10621557]
[1754496166943,10.45740874,169.58,169.55,43.74]
[1754496167148,9.75740874,169.56,169.55,43.74]
[1754496167426,9.75740874,169.56,169.54,15.10621557]
[1754496167744,5.89633916,169.6,169.53,43.74]
[1754496167745,10.45740874,169.55,169.53,43.74]
[1754496167935,10.45740874,169.54,169.52,43.74]
[1754496168139,9.75740874,169.53,169.52,58.84621557]
[1754496168843,9.75740874,169.54,169.52,58.84621557]
[1754496169325,0.7,169.58,169.53,15.10621557]
[1754496169650,9.75740874,169.57,169.53,15.10621557]
[1754496170028,9.75740874,169.56,169.53,15.10621557]
[1754496170742,9.75740874,169.55,169.53,15.10621557]
[1754496170942,9.75740874,169.54,169.53,15.10621557]
[1754496171136,10.45740874,169.54,169.52,43.74]
[1754496171336,9.75740874,169.53,169.52,58.84621557]
[1754496171627,10.45740874,169.53,169.47,0.06]
[1754496171936,45.61015835,169.56,169.47,0.06]
[1754496171937,9.75740874,169.48,169.47,0.06]
[1754496172635,10.45740874,169.48,169.47,0.06]
[1754496172955,16.35780996,169.48,169.47,0.06]
[1754496173135,6.60040122,169.48,169.47,0.06]
[1754496173333,0.7,169.48,169.47,0.06]
[1754496173527,26.7,169.51,169.47,0.06]
[1754496173756,9.75740874,169.49,169.47,0.06]
[1754496173932,9.75740874,169.48,169.47,0.06]
[1754496174249,10.45740874,169.48,169.47,0.06]
[1754496175030,9.75740874,169.49,169.47,0.06]
[1754496175450,0.7,169.54,169.47,0.06]
[1754496175831,26.7,169.54,169.48,15.10621557]
[1754496176033,9.75740874,169.52,169.48,58.84621557]
[1754496176635,9.75740874,169.53,169.5,15.10621557]
[1754496176831,9.75740874,169.51,169.48,43.74]
[1754496177067,9.75740874,169.49,169.48,58.84621557]
[1754496177357,0.7,169.49,169.48,58.84621557]
[1754496177564,0.7,169.52,169.48,58.84621557]
[1754496177733,0.7,169.51,169.48,58.84621557]
[1754496177927,9.75740874,169.49,169.48,43.74]
[1754496178234,10.45740874,169.49,169.48,43.74]
[1754496178671,9.75740874,169.5,169.48,58.84621557]
[1754496178874,9.75740874,169.52,169.48,64.74661679]
[1754496179664,9.75740874,169.51,169.48,43.74]
[1754496179877,9.75740874,169.49,169.48,58.84621557]
[1754496180246,9.75740874,169.5,169.48,64.74661679]
[1754496180537,9.75740874,169.51,169.48,58.84621557]
[1754496180867,9.75740874,169.49,169.47,0.06]
[1754496181035,10.45740874,169.48,169.47,0.06]
[1754496181950,31.89885203,169.53,169.47,0.06]
[1754496181951,26.0,169.5,169.47,0.06]
[1754496182152,9.75740874,169.48,169.47,0.06]
[1754496182465,10.45740874,169.48,169.47,0.06]
[1754496182844,26.0,169.45,169.42,0.06]
[1754496183035,9.75740874,169.43,169.42,0.06]
[1754496183238,9.75740874,169.43,169.41,0.06]
[1754496183460,36.47740874,169.42,169.41,0.06]
[1754496183862,36.47740874,169.42,169.39,0.06]
[1754496184071,9.75740874,169.4,169.39,0.06]
[1754496184443,10.47740874,169.4,169.39,0.06]
[1754496184747,6.62318772,169.4,169.39,0.06]
[1754496184940,16.38059646,169.4,169.39,0.06]
[1754496186056,10.47740874,169.4,169.39,0.06]
[1754496186255,16.38059646,169.4,169.39,0.06]
[1754496186864,16.6649196,169.4,169.38,0.1]
[1754496187049,10.47740874,169.39,169.38,0.1]
[1754496187652,36.47740874,169.39,169.38,0.1]
[1754496187985,9.75740874,169.39,169.38,0.1]
[1754496188143,26.0,169.41,169.38,0.1]
[1754496188572,9.75740874,169.39,169.38,0.1]
[1754496188881,15.66094495,169.39,169.36,0.1]
[1754496189187,26.0,169.34,169.31,0.06]
[1754496189347,9.75740874,169.32,169.31,0.06]
[1754496190147,9.75740874,169.33,169.31,0.06]
[1754496190376,26.0,169.35,169.31,0.06]
[1754496190555,9.75740874,169.33,169.31,0.06]
[1754496190758,9.75740874,169.32,169.31,0.06]
[1754496191572,0.72,169.34,169.26,24.08362431]
[1754496191776,0.72,169.34,169.25,43.76]
[1754496191777,0.72,169.37,169.29,9.75740874]
[1754496191991,9.75740874,169.36,169.3,9.75740874]
[1754496192270,9.75740874,169.4,169.35,9.75740874]
[1754496192672,9.75740874,169.4,169.36,5.90458195]
[1754496192851,0.03,169.5,169.36,20.66603683]
[1754496192852,0.72,169.45,169.36,20.66603683]
[1754496193053,9.75740874,169.43,169.36,20.66603683]
[1754496193272,9.75740874,169.42,169.36,5.90458195]
[1754496193450,9.75740874,169.43,169.36,5.90458195]
[1754496193650,9.75740874,169.43,169.38,15.10621557]
[1754496194570,9.75740874,169.45,169.41,15.10621557]
[1754496194773,9.75740874,169.45,169.42,5.90249085]
[1754496194948,9.75740874,169.47,169.43,15.10621557]
[1754496195156,9.75740874,169.48,169.43,24.86362431]
[1754496195363,9.75740874,169.48,169.43,15.10621557]
[1754496195877,9.75740874,169.48,169.43,24.86362431]
[1754496196180,9.75740874,169.47,169.43,15.10621557]
[1754496196555,9.75740874,169.45,169.41,5.90277225]
[1754496196855,0.72,169.46,169.42,15.10621557]
[1754496197054,9.75740874,169.45,169.42,15.10621557]
[1754496197478,9.75740874,169.46,169.42,15.10621557]
[1754496197774,9.75740874,169.46,169.42,21.00851835]
[1754496197982,9.75740874,169.45,169.42,21.00851835]
[1754496198188,10.47740874,169.44,169.37,58.80436932]
[1754496198390,9.75740874,169.42,169.38,21.00978056]
[1754496198554,0.72,169.45,169.38,21.00978056]
[1754496198885,9.75740874,169.42,169.38,21.00978056]
[1754496199083,9.75740874,169.41,169.38,15.10621557]
[1754496199375,9.75740874,169.39,169.38,15.10621557]
[1754496199869,9.75740874,169.4,169.38,15.10621557]
[1754496200073,9.75740874,169.4,169.38,21.01001504]
[1754496200259,9.75740874,169.4,169.38,15.10621557]
[1754496200675,0.72,169.43,169.38,15.10621557]
[1754496200884,9.75740874,169.4,169.38,21.01004214]
[1754496201059,9.75740874,169.39,169.37,43.76]
[1754496201255,10.47740874,169.38,169.37,43.76]
[1754496201477,9.75740874,169.44,169.34,15.10621557]
[1754496201478,35.75740874,169.44,169.34,15.10621557]
[1754496201781,9.75740874,169.4,169.34,15.10621557]
[1754496201960,9.75740874,169.4,169.34,24.86362431]
[1754496202351,9.75740874,169.4,169.36,15.10621557]
[1754496202552,0.72,169.43,169.36,15.10621557]
[1754496202774,9.75740874,169.43,169.38,15.10621557]
[1754496203165,9.75740874,169.42,169.38,15.10621557]
[1754496203452,10.47740874,169.45,169.4,9.75740874]
[1754496203651,9.75740874,169.45,169.39,24.86362431]
[1754496203874,9.75740874,169.44,169.39,24.86362431]
[1754496204283,9.75740874,169.44,169.39,15.10621557]
[1754496204496,0.72,169.46,169.39,15.10621557]
[1754496204497,9.75740874,169.42,169.39,15.10621557]
[1754496205000,9.75740874,169.41,169.39,15.10621557]
[1754496205282,10.47740874,169.4,169.38,43.76]
[1754496205458,9.75740874,169.41,169.39,15.10621557]
[1754496205659,9.75740874,169.43,169.39,15.10621557]
[1754496206065,10.47740874,169.45,169.39,24.86362431]
[1754496206276,9.75740874,169.45,169.41,15.10621557]
[1754496206484,9.75740874,169.44,169.41,15.10621557]
[1754496206661,9.75740874,169.43,169.4,15.10621557]
[1754496206863,9.75740874,169.41,169.38,43.76]
[1754496207076,9.75740874,169.39,169.38,58.86621557]
[1754496207287,10.47740874,169.39,169.38,58.86621557]
[1754496207492,9.75740874,169.43,169.39,15.10621557]
[1754496208482,9.75740874,169.42,169.39,21.00956197]
[1754496208886,9.75740874,169.43,169.39,21.00956197]
[1754496209261,9.75740874,169.44,169.39,21.00956197]
[1754496209466,9.75740874,169.44,169.39,30.76697071]
[1754496209792,29.93590225,169.47,169.41,15.10621557]
[1754496209990,9.75740874,169.45,169.41,15.10621557]
[1754496210192,26.72,169.47,169.4,15.10621557]
[1754496210193,9.75740874,169.44,169.4,15.10621557]
[1754496210368,10.47740874,169.44,169.4,15.10621557]
[1754496210569,9.75740874,169.41,169.36,15.10621557]
[1754496210876,9.75740874,169.38,169.36,58.86621557]
[1754496211071,9.75740874,169.39,169.36,58.86621557]
[1754496211574,0.72,169.4,169.36,58.86621557]
[1754496211575,10.47740874,169.4,169.36,64.77079752]
[1754496211973,0.72,169.4,169.36,64.77079752]
[1754496212176,9.75740874,169.42,169.38,15.10621557]
[1754496212579,9.75740874,169.39,169.37,15.10621557]
[1754496212787,10.47740874,169.39,169.37,15.10621557]
[1754496212987,10.44740874,169.38,169.37,15.10621557]
[1754496213372,3.94141634,169.43,169.37,15.10621557]
[1754496213694,0.69,169.42,169.36,5.90458195]
[1754496214107,0.69,169.42,169.37,24.86362431]
[1754496214285,9.75740874,169.43,169.37,24.86362431]
[1754496214771,10.44740874,169.45,169.4,15.10621557]
[1754496215380,9.75740874,169.44,169.4,15.10621557]
[1754496215581,10.47740874,169.48,169.43,9.75740874]
[1754496215888,0.03,169.48,169.45,15.10621557]
[1754496216091,0.03,169.48,169.45,24.86362431]
[1754496216397,0.03,169.48,169.45,15.10621557]
[1754496217390,0.03,169.48,169.45,21.00742423]
[1754496218003,0.03,169.48,169.45,30.76483297]
[1754496218197,0.03,169.48,169.47,24.86362431]
[1754496218578,0.03,169.48,169.45,20.65482329]
[1754496218579,0.03,169.48,169.46,15.10621557]
[1754496219483,0.03,169.48,169.47,5.90074939]
[1754496219787,0.03,169.48,169.47,64.74696496]
[1754496220106,0.03,169.48,169.47,74.5043737]
[1754496220286,0.03,169.48,169.47,74.78869684]
[1754496220798,0.03,169.48,169.47,64.74696496]